bitfinex-derivatives/quotes_ETHF0:USTF0_20250105
["timestamp","ask_amount","ask_price","bid_price","bid_amount"]
[1736057050304,11.12684555,3631.1,3631.0,0.00211797]
[1736057058510,10.85138555,3631.1,3630.6,0.4079]
[1736057058760,0.27549,3630.7,3630.6,0.4079]
[1736057058903,0.27549,3630.8,3630.6,0.4079]
[1736057059309,0.27549,3630.7,3630.6,0.4079]
[1736057060503,1.078,3630.9,3630.6,0.4079]
[1736057060860,4.73606714,3630.7,3630.6,0.6834]
[1736057062214,3.24183443,3630.8,3630.7,0.27549]
[1736057066608,0.00263443,3630.8,3630.7,7.49598412]
[1736057067705,3.54940869,3631.0,3630.9,0.27548]
[1736057067908,0.41327627,3631.1,3631.0,0.27547]
[1736057067909,1.4851093,3631.1,3631.0,0.27547]
[1736057068116,0.67021949,3631.5,3631.4,0.27544]
[1736057068413,0.67021949,3631.5,3631.4,5.70373412]
[1736057068613,0.67021949,3631.5,3631.4,10.70373412]
[1736057069314,3.6491,3632.2,3631.4,10.42829412]
[1736057069505,3.6491,3632.2,3631.5,0.27543]
[1736057069709,0.4413,3632.2,3632.0,2.22049412]
[1736057069910,0.4413,3632.2,3632.1,0.27539]
[1736057073208,0.4413,3632.2,3631.9,7.53550621]
[1736057073209,0.4413,3632.2,3631.9,3.2078]
[1736057073520,0.4413,3632.2,3632.0,0.27539]
[1736057073909,0.27539,3632.1,3632.0,0.27539]
[1736057078011,0.27539,3632.1,3632.0,2.49588412]
[1736057078608,0.27539,3632.1,3632.0,2.61438412]
[1736057078817,0.27539,3632.1,3632.0,0.27539]
[1736057079007,0.27539,3632.1,3632.0,0.39389]
[1736057079209,0.27539,3632.1,3632.0,2.61438412]
[1736057080319,0.27539,3632.1,3632.0,2.49588412]
[1736057087821,0.27539,3632.1,3632.0,7.49588412]
[1736057088023,0.4465,3632.5,3632.4,2.49585412]
[1736057088230,0.4465,3632.5,3632.4,5.70365412]
[1736057088724,0.887,3632.5,3632.4,5.70365412]
[1736057094828,3.2078,3633.7,3633.4,0.27529]
[1736057095130,0.8586,3633.5,3633.4,0.27529]
[1736057096326,0.8586,3633.5,3633.2,3.4831]
[1736057096626,0.8586,3633.5,3633.2,0.2753]
[1736057097234,0.8586,3633.5,3632.9,2.22049412]
[1736057097436,0.8586,3633.5,3633.3,0.27529]
[1736057097930,0.8586,3633.5,3633.4,0.27529]
[1736057100530,0.8586,3633.5,3633.2,3.4831]
[1736057100731,0.8586,3633.5,3633.2,3.2078]
[1736057102632,0.8586,3633.5,3632.1,0.1182]
[1736057102633,0.27529,3633.4,3632.8,3.2078]
[1736057102840,0.27529,3633.4,3632.8,3.48313]
[1736057103438,1.13388,3633.5,3633.0,0.27532]
[1736057104139,0.8586,3633.5,3632.8,3.2078]
[1736057104387,0.2753,3633.4,3632.9,0.27532]
[1736057105334,0.2753,3633.4,3633.0,0.27531]
[1736057105538,0.2753,3633.3,3632.9,0.27532]
[1736057106939,0.2753,3633.3,3632.8,3.48313]
[1736057108036,0.2753,3633.3,3632.9,0.27532]
[1736057108537,1.9426,3633.5,3632.8,3.2078]
[1736057108755,1.9426,3633.5,3633.0,0.27532]
[1736057108756,0.27529,3633.4,3633.0,0.27532]
[1736057109740,2.21788,3633.5,3633.1,0.27531]
[1736057109940,0.27529,3633.4,3633.0,0.27532]
[1736057110140,1.9426,3633.5,3632.9,0.27532]
[1736057110343,1.9426,3633.5,3632.8,3.2078]
[1736057110536,0.2753,3633.3,3632.9,0.27532]
[1736057112247,0.27529,3633.4,3633.0,0.27531]
[1736057112642,6.24255377,3633.5,3632.8,3.2078]
[1736057113244,5.15855377,3633.5,3633.2,0.2753]
[1736057113547,5.15855377,3633.5,3632.8,3.2078]
[1736057113548,5.15855377,3633.5,3633.0,2.22049412]
[1736057113752,5.15855377,3633.5,3633.4,0.27529]
[1736057114442,0.8586,3633.5,3633.4,0.27529]
[1736057116742,0.8586,3633.5,3633.4,0.43009]
[1736057117348,0.4264,3633.5,3633.4,0.43009]
[1736057118151,0.96908,3633.8,3633.7,0.27527]
[1736057119250,0.52828,3633.8,3633.7,0.27527]
[1736057125254,0.52828,3633.8,3633.7,0.30767]
[1736057127502,0.52828,3633.8,3633.7,0.46237]
[1736057131060,0.52828,3633.8,3633.7,0.1871]
[1736057132659,0.80354,3633.8,3633.7,0.1871]
[1736057132867,0.27527,3633.6,3633.4,0.1548]
[1736057133066,0.4492,3633.7,3633.4,0.1548]
[1736057133363,3.48308,3633.5,3633.4,0.1548]
[1736057134863,3.48308,3633.5,3632.8,4.32770621]
[1736057134864,3.2078,3633.5,3632.8,4.32770621]
[1736057135060,3.2078,3633.5,3632.8,4.60303621]
[1736057135365,0.27529,3633.4,3632.9,0.27533]
[1736057135665,0.27529,3633.4,3632.7,8.69081724]
[1736057135666,0.4098,3633.3,3632.7,6.54820033]
[1736057135864,0.6851,3633.3,3632.8,0.27533]
[1736057138165,0.4063,3633.2,3632.8,0.27533]
[1736057138367,0.4491,3633.1,3632.8,0.27533]
[1736057138758,0.27532,3633.0,3632.7,4.32770621]
[1736057138963,0.72441,3633.1,3632.7,4.32770621]
[1736057139772,0.72441,3633.1,3632.6,0.27534]
[1736057140765,0.4491,3633.1,3632.5,4.32770621]
[1736057140969,3.68629298,3633.1,3632.4,5.76939412]
[1736057141168,3.68629298,3633.1,3632.6,0.27534]
[1736057142162,0.4491,3633.1,3633.0,0.27532]
[1736057145368,0.4491,3633.1,3632.7,2.22049412]
[1736057145566,0.4491,3633.1,3632.9,0.27532]
[1736057147272,0.4491,3633.1,3633.0,0.27532]
[1736057147668,0.4491,3633.1,3632.8,0.27533]
[1736057148671,0.4491,3633.1,3632.7,2.22049412]
[1736057148871,0.4491,3633.1,3632.8,0.27533]
[1736057149779,0.4491,3633.1,3632.7,2.22049412]
[1736057149977,0.4491,3633.1,3632.8,0.27533]
[1736057150173,0.4491,3633.1,3632.9,0.27532]
[1736057151175,0.4491,3633.1,3632.7,2.22049412]
[1736057151176,0.4491,3633.1,3632.8,0.27533]
[1736057153681,0.4491,3633.1,3632.9,0.27532]
[1736057154274,0.4491,3633.1,3632.9,1.27589358]
[1736057155573,0.4491,3633.1,3632.9,1.00057358]
[1736057155778,0.4491,3633.1,3633.0,0.27532]
[1736057160580,0.4063,3633.2,3633.1,0.27531]
[1736057160780,0.4063,3633.2,3633.1,1.27588358]
[1736057161887,3.23719298,3633.5,3633.1,1.00057358]
[1736057162187,3.23719298,3633.5,3633.4,1.27586358]
[1736057163091,1.37148,3633.8,3633.4,4.20837358]
[1736057163288,1.37148,3633.8,3633.7,1.27584358]
[1736057169594,1.37148,3633.8,3633.7,0.27527]
[1736057170190,1.37148,3633.8,3633.4,3.2078]
[1736057170494,1.43507358,3633.7,3633.3,1.27586358]
[1736057171792,1.43507358,3633.7,3633.4,0.27529]
[1736057173696,4.67226656,3633.7,3633.4,0.27529]
[1736057174794,4.67226656,3633.7,3633.3,1.27586358]
[1736057175594,4.67226656,3633.7,3633.1,1.00057358]
[1736057175793,1.00057358,3633.3,3632.9,4.32770621]
[1736057175987,0.8578,3633.2,3632.9,4.32770621]
[1736057176190,0.4377,3633.1,3632.9,4.60303621]
[1736057177295,0.4377,3633.1,3632.9,4.32770621]
[1736057177697,0.4377,3633.1,3632.7,7.4708967]
[1736057177698,3.67489298,3633.1,3632.7,1.00057358]
[1736057178404,3.67489298,3633.1,3632.9,0.27532]
[1736057178695,3.67489298,3633.1,3632.8,0.27533]
[1736057179499,3.67489298,3633.1,3632.7,1.00057358]
[1736057179702,4.67546656,3633.1,3632.7,1.00057358]
[1736057179905,0.27532,3633.0,3632.6,1.00057358]
[1736057180605,1.00057358,3632.9,3632.6,1.00057358]
[1736057182196,1.00057358,3632.9,3632.6,1.27592358]
[1736057183403,3.23719298,3633.0,3632.7,0.27534]
[1736057184009,3.23719298,3633.0,3632.8,1.00057358]
[1736057185209,3.23719298,3633.0,3632.8,1.27590358]
[1736057185405,3.23719298,3633.0,3632.8,1.00057358]
[1736057186005,3.23719298,3633.0,3632.8,1.27590358]
[1736057187112,1.43827358,3633.1,3632.8,1.27590358]
[1736057187113,4.67546656,3633.1,3632.8,1.27590358]
[1736057187525,3.2078,3633.0,3632.8,1.27590358]
[1736057188422,3.2078,3633.0,3632.8,0.27533]
[1736057188423,6.44499298,3633.0,3632.8,0.27533]
[1736057189916,2.15863507,3632.9,3632.8,0.27533]
[1736057191212,2.15863507,3632.9,3632.6,1.00057358]
[1736057191420,3.15920865,3632.9,3632.7,0.27534]
[1736057192615,2.15863507,3632.9,3632.7,0.27534]
[1736057198525,2.15863507,3632.9,3632.6,1.00057358]
[1736057198724,2.15863507,3632.9,3632.7,0.27534]
[1736057205135,2.15863507,3632.9,3632.6,1.00057358]
[1736057205662,2.15863507,3632.9,3632.7,0.27534]
[1736057206027,2.15863507,3632.9,3632.8,0.27533]
[1736057208032,6.88269298,3633.1,3632.8,0.27533]
[1736057208033,2.15863507,3633.0,3632.8,0.27533]
[1736057211938,2.15863507,3633.0,3632.9,0.27533]
[1736057214343,3.67489298,3633.1,3632.7,0.4193]
[1736057214534,3.67489298,3633.1,3632.8,0.27533]
[1736057215136,4.67546656,3633.1,3632.8,0.27533]
[1736057215342,2.16008652,3632.9,3632.8,0.27533]
[1736057216641,3.23719298,3632.9,3632.8,0.27533]
[1736057217840,4.29995377,3633.0,3632.8,0.27533]
[1736057218947,4.71305858,3633.0,3632.8,0.27533]
[1736057219546,4.71305858,3633.0,3632.7,4.60304621]
[1736057219841,4.71305858,3633.0,3632.7,4.32770621]
[1736057220046,4.71305858,3633.0,3632.8,0.27533]
[1736057221648,4.29995377,3632.9,3632.8,0.27533]
[1736057222848,5.17938081,3633.0,3632.8,4.60303621]
[1736057223047,1.00057358,3632.9,3632.8,4.32770621]
[1736057224359,1.00057358,3632.9,3632.7,4.32770621]
[1736057225544,4.73593797,3632.8,3632.7,4.32770621]
[1736057227754,4.73593797,3632.8,3632.7,4.60304621]
[1736057228151,0.41310481,3632.8,3632.7,0.27534]
[1736057229347,4.32283316,3632.8,3632.7,0.27534]
[1736057230550,4.32283316,3632.9,3632.7,0.27534]
[1736057231754,4.32283316,3632.9,3632.8,4.33552173]
[1736057233057,5.81659339,3633.0,3632.8,4.33552173]
[1736057234151,10.5818962,3633.0,3632.8,4.33552173]
[1736057234356,5.17840762,3633.0,3632.8,4.33552173]
[1736057234858,5.17840762,3633.0,3632.9,0.27533]
[1736057235052,5.17840762,3633.0,3632.8,4.61085173]
[1736057235254,4.32286117,3632.9,3632.8,4.61085173]
[1736057241860,0.41310481,3633.0,3632.8,4.61085173]
[1736057243165,5.17783339,3633.0,3632.8,4.61085173]
[1736057243366,5.17783339,3633.0,3632.9,0.27533]
[1736057246664,4.50233339,3633.0,3632.9,1.06203]
[1736057247168,2.18584339,3633.0,3632.9,6.06203]
[1736057247362,2.18584339,3633.0,3632.9,7.06260358]
[1736057247363,1.24268533,3633.0,3632.9,7.06260358]
[1736057247566,4.32405365,3633.3,3633.2,0.2753]
[1736057247759,3.27218365,3633.3,3633.2,5.48424716]
[1736057247959,1.54829365,3633.3,3633.2,10.48424716]
[1736057248155,0.76249365,3633.3,3633.2,10.48424716]
[1736057249074,8.61285846,3634.3,3633.2,10.48424716]
[1736057249075,2.57029928,3634.2,3634.0,0.27524]
[1736057249288,2.57029928,3634.2,3634.1,1.00057358]
[1736057249765,2.57029928,3634.2,3634.1,1.27581358]
[1736057250561,0.4111,3634.2,3634.1,1.27581358]
[1736057252171,0.4111,3634.2,3634.1,5.59632574]
[1736057253868,0.4111,3634.2,3634.1,1.27581358]
[1736057254165,2.58919928,3634.6,3634.1,1.00057358]
[1736057254462,2.58919928,3634.6,3634.0,4.32051216]
[1736057254463,2.58919928,3634.6,3634.5,1.00057358]
[1736057255264,2.58919928,3634.6,3634.5,1.27577358]
[1736057255660,0.43,3634.6,3634.5,1.27577358]
[1736057255867,0.43,3634.6,3634.5,0.2752]
[1736057256167,0.95561,3634.8,3634.7,0.27519]
[1736057256362,0.95561,3634.8,3634.7,4.48356358]
[1736057258274,0.95561,3634.8,3634.7,5.69735702]
[1736057259672,0.95561,3634.8,3634.7,5.42216702]
[1736057259969,0.95561,3634.8,3634.7,5.69735702]
[1736057260163,0.95561,3634.8,3634.7,5.42216702]
[1736057260367,0.95561,3634.8,3634.7,5.69735702]
[1736057267068,0.95561,3634.8,3634.7,10.69735702]
[1736057268576,0.95561,3634.8,3634.7,5.69735702]
[1736057269279,0.95561,3634.8,3634.7,10.69735702]
[1736057270176,0.95561,3634.8,3634.7,5.69735702]
[1736057270372,0.95561,3634.8,3634.7,10.69735702]
[1736057270579,0.95561,3634.8,3634.7,5.69735702]
[1736057271377,0.95561,3634.8,3634.7,10.69735702]
[1736057271769,3.2078,3636.1,3634.7,10.69735702]
[1736057272079,1.3134,3636.0,3635.9,2.48946702]
[1736057279383,1.3134,3636.0,3635.7,3.2078]
[1736057279682,1.3134,3636.0,3635.8,0.2751]
[1736057280084,1.3134,3636.0,3635.7,3.2078]
[1736057280283,1.3134,3636.0,3635.8,0.2751]
[1736057281677,1.3134,3636.0,3635.9,0.2751]
[1736057282187,1.3134,3636.0,3635.7,3.48291]
[1736057282780,1.3134,3636.0,3635.7,3.2078]
[1736057283284,1.3134,3636.0,3635.8,0.2751]
[1736057283682,1.3134,3636.0,3635.7,3.2078]
[1736057284079,1.3134,3636.0,3635.9,0.2751]
[1736057284886,1.3134,3636.0,3635.7,3.2078]
[1736057285587,1.3134,3636.0,3635.8,0.2751]
[1736057286384,1.3134,3636.0,3635.9,0.2751]
[1736057287579,1.3134,3636.0,3635.9,2.48946702]
[1736057289886,1.3134,3636.0,3635.9,0.2751]
[1736057290484,1.3134,3636.0,3635.6,2.21436702]
[1736057290686,4.5212,3636.0,3635.5,3.2078]
[1736057290889,0.2751,3635.9,3635.3,2.48950702]
[1736057291994,4.79629,3636.0,3635.4,0.27513]
[1736057292294,4.79629,3636.0,3635.3,2.21436702]
[1736057292295,0.2751,3635.9,3635.3,2.48950702]
[1736057292483,0.2751,3635.9,3635.3,2.21436702]
[1736057292683,0.2751,3635.9,3635.4,0.27514]
[1736057293690,0.00241876,3635.7,3635.4,0.27514]
[1736057296889,0.00241876,3635.7,3635.5,0.27513]
[1736057300404,0.00241876,3635.7,3635.4,0.27513]
[1736057301194,0.00241876,3635.7,3635.3,2.21436702]
[1736057301499,0.00241876,3635.7,3635.4,0.27513]
[1736057302591,0.00241876,3635.7,3635.3,2.48950702]
[1736057304094,0.00241876,3635.7,3635.5,0.27512]
[1736057304300,0.00241876,3635.7,3635.6,0.27512]
[1736057304700,0.00241876,3635.7,3635.6,2.48948702]
[1736057306707,0.00241876,3635.7,3635.6,12.83378079]
[1736057308314,0.00241876,3635.7,3635.6,6.34737826]
[1736057311516,0.00241876,3635.7,3635.6,12.83148833]
[1736057312708,0.00241876,3635.7,3635.6,6.34737826]
[1736057314824,0.00241876,3635.7,3635.6,3.85789124]
[1736057315014,0.00241876,3635.7,3635.6,6.07225826]
[1736057316817,0.00241876,3635.7,3635.6,2.21436702]
[1736057317320,0.44081876,3635.7,3635.6,2.21436702]
[1736057318625,2.60001804,3635.7,3635.6,2.21436702]
[1736057325923,2.60001804,3635.7,3635.5,4.32447598]
[1736057326420,2.87513804,3635.7,3635.5,4.32447598]
[1736057326830,2.15919928,3635.6,3635.4,4.32447598]
[1736057327033,0.8534,3635.5,3635.4,4.32447598]
[1736057328129,3.01259928,3635.5,3635.4,4.32447598]
[1736057328826,3.28772928,3635.5,3635.4,4.32447598]
[1736057329934,3.28772928,3635.5,3635.1,4.32447598]
[1736057329935,1.26625183,3635.5,3635.1,4.32447598]
[1736057330225,3.2078,3635.2,3635.1,4.32447598]
[1736057330827,3.6383,3635.2,3635.1,4.32447598]
[1736057331026,3.91345,3635.2,3635.1,4.32447598]
[1736057331331,3.91345,3635.2,3634.7,8.64853671]
[1736057331332,7.15501565,3635.2,3634.8,4.59965598]
[1736057332041,0.27517,3635.1,3634.8,4.32447598]
[1736057332220,6.87986565,3635.2,3634.8,4.32447598]
[1736057332424,0.27517,3634.9,3634.8,4.32447598]
[1736057332931,0.27517,3634.9,3634.7,8.70108099]
[1736057332932,0.27517,3634.9,3634.7,6.538843]
[1736057333130,0.8456,3634.8,3634.7,6.538843]
[1736057334027,0.8456,3634.8,3634.7,2.21436702]
[1736057334631,0.8456,3634.8,3634.6,4.32447598]
[1736057334928,0.68439,3634.7,3634.6,4.32447598]
[1736057335527,0.68439,3634.7,3634.5,4.32447598]
[1736057335939,0.4092,3634.7,3634.5,4.32447598]
[1736057337039,0.4092,3634.7,3634.4,0.27521]
[1736057337936,0.4092,3634.7,3634.3,5.02009598]
[1736057338332,0.4092,3634.7,3634.3,0.69562]
[1736057339835,0.4092,3634.7,3634.3,0.4204]
[1736057340043,0.68439,3634.7,3634.3,0.4204]
[1736057340338,0.4092,3634.7,3634.3,0.4204]
[1736057340542,0.6844,3634.7,3634.3,0.4204]
[1736057340888,0.4092,3634.7,3634.3,0.4204]
[1736057342039,0.2752,3634.6,3634.3,0.4204]
[1736057342942,0.68439,3634.7,3634.3,0.4204]
[1736057343145,0.4092,3634.7,3634.3,0.69562]
[1736057343540,0.68439,3634.7,3634.3,0.4204]
[1736057344340,0.4092,3634.7,3634.3,0.4204]
[1736057344542,3.48301,3634.5,3634.3,0.4204]
[1736057345642,3.2078,3634.5,3633.9,2.21436702]
[1736057345946,0.27523,3634.2,3633.9,2.21436702]
[1736057346141,0.8492,3634.1,3633.8,0.4257]
[1736057346443,1.53694,3634.1,3633.8,0.4257]
[1736057347635,4.74474,3634.1,3633.8,0.4257]
[1736057350343,0.27524,3634.0,3633.8,0.4257]
[1736057350743,3.48304,3634.0,3633.8,0.4257]
[1736057351345,3.2078,3634.0,3633.8,0.4257]
[1736057351547,3.2078,3634.0,3633.6,2.21436702]
[1736057351548,0.27525,3633.9,3633.6,2.21436702]
[1736057352843,3.2078,3634.0,3633.6,2.21436702]
[1736057353048,0.27527,3633.7,3633.3,3.09026702]
[1736057353549,0.4085,3633.6,3633.3,3.09026702]
[1736057354048,3.89157,3633.6,3633.3,3.09026702]
[1736057355553,3.6163,3633.6,3633.3,3.09026702]
[1736057356246,3.2078,3633.6,3633.3,3.09026702]
[1736057358450,1.072,3634.0,3633.5,0.27527]
[1736057358451,3.2078,3634.0,3633.5,0.27527]
[1736057358646,3.2078,3634.0,3633.7,2.21436702]
[1736057358944,3.2078,3634.0,3633.8,0.4328]
[1736057359151,3.2078,3634.0,3633.8,0.8736]
[1736057361749,3.48304,3634.0,3633.8,0.4408]
[1736057362155,0.27525,3633.9,3633.8,0.4408]
[1736057362354,0.27525,3633.9,3633.4,2.48965702]
[1736057362546,0.27526,3633.8,3633.5,0.4176]
[1736057362851,0.27526,3633.9,3633.5,0.4176]
[1736057363649,0.27526,3633.8,3633.5,0.4176]
[1736057364254,3.2078,3634.0,3633.5,0.4176]
[1736057364553,0.27526,3633.8,3633.5,0.4176]
[1736057364954,0.27527,3633.6,3633.4,2.21436702]
[1736057365255,0.8595,3633.5,3633.4,2.21436702]
[1736057372254,0.8595,3633.5,3633.4,1.00020175]
[1736057373550,0.4426,3633.5,3633.4,1.00020175]
[1736057375550,3.6377,3633.7,3633.5,0.27528]
[1736057375760,3.6377,3633.7,3633.6,1.00020175]
[1736057376160,0.4299,3633.7,3633.6,1.00020175]
[1736057387764,2.59050158,3633.7,3633.6,1.00020175]
[1736057388970,2.59050158,3633.7,3633.5,1.00020175]
[1736057390270,3.94673565,3633.7,3633.5,1.00020175]
[1736057390668,3.67146565,3633.7,3633.5,1.00020175]
[1736057391067,3.94673565,3633.7,3633.5,1.00020175]
[1736057391888,3.24156565,3633.6,3633.5,1.00020175]
[1736057393270,3.65461364,3633.6,3633.5,5.32467773]
[1736057397974,6.86241364,3633.6,3633.5,5.32467773]
[1736057398673,0.41304799,3633.6,3633.5,4.86906747]
[1736057399469,3.89611799,3633.6,3633.5,4.86906747]
[1736057400373,3.48307,3633.6,3633.5,4.86906747]
[1736057400677,3.2078,3633.6,3633.5,4.86906747]
[1736057400977,3.2078,3633.6,3633.5,3.86886572]
[1736057400978,3.48307,3633.6,3633.5,3.86886572]
[1736057401875,8.18631561,3633.6,3633.4,4.33313948]
[1736057402072,0.70518,3633.5,3633.4,4.33313948]
[1736057403177,4.32602799,3633.5,3633.4,4.33313948]
[1736057403378,4.05074799,3633.5,3633.4,4.33313948]
[1736057407873,0.84294799,3633.5,3633.4,4.33313948]
[1736057408276,4.05074799,3633.5,3633.4,4.33313948]
[1736057408882,0.84294799,3633.5,3633.4,4.33313948]
[1736057409081,4.05074799,3633.5,3633.4,4.33313948]
[1736057415492,4.32602799,3633.5,3633.4,4.33313948]
[1736057415692,8.34094561,3633.5,3633.3,4.33313948]
[1736057415990,0.69309,3633.4,3633.3,4.33313948]
[1736057416186,1.69329175,3633.4,3633.3,4.33313948]
[1736057416790,6.48301897,3633.4,3633.2,6.48671397]
[1736057416991,0.4216,3633.3,3633.0,5.02925948]
[1736057418284,3.2438806,3633.1,3633.0,5.02925948]
[1736057418490,3.2438806,3633.1,3633.0,4.75393948]
[1736057420592,3.2438806,3633.1,3633.0,5.02925948]
[1736057420792,3.2438806,3633.1,3633.0,0.69612]
[1736057421690,3.2438806,3633.1,3633.0,1.55702]
[1736057422097,3.65692859,3633.2,3633.0,5.61483948]
[1736057422294,3.65692859,3633.2,3633.1,1.27551175]
[1736057423092,3.65692859,3633.2,3633.1,1.00020175]
[1736057423593,3.2438806,3633.2,3633.1,5.33334123]
[1736057423800,3.5191806,3633.3,3633.1,5.33334123]
[1736057424195,6.7269806,3633.3,3633.1,5.33334123]
[1736057424796,3.2438806,3633.2,3633.1,1.00020175]
[1736057425394,3.5191806,3633.2,3633.1,1.00020175]
[1736057425995,3.93227227,3633.2,3633.1,1.00020175]
[1736057426901,0.27531,3633.1,3633.0,4.33313948]
[1736057429008,0.41309167,3633.1,3632.5,5.33334123]
[1736057429196,4.20800175,3632.9,3632.5,5.33334123]
[1736057429397,0.27535,3632.7,3632.5,5.33334123]
[1736057429907,1.43990175,3632.6,3632.5,4.33313948]
[1736057430101,1.71525175,3632.6,3632.5,4.33313948]
[1736057430603,1.71525175,3632.6,3632.4,3.2078]
[1736057430604,3.87559503,3632.6,3632.4,3.2078]
[1736057430806,3.87559503,3632.6,3632.3,4.76783948]
[1736057431105,2.60004328,3632.6,3632.3,5.04320948]
[1736057432106,2.16034328,3632.5,3632.3,0.71007]
[1736057432300,2.16034328,3632.5,3632.3,0.4347]
[1736057432508,2.16034328,3632.5,3632.3,1.43490175]
[1736057433503,2.87539328,3632.6,3632.3,1.43490175]
[1736057434007,2.60004328,3632.6,3632.3,1.43490175]
[1736057435111,2.87539328,3632.6,3632.3,1.43490175]
[1736057436507,2.60004328,3632.6,3632.3,1.43490175]
[1736057436704,2.16034328,3632.6,3632.5,1.00020175]
[1736057437511,2.43569328,3632.6,3632.5,1.00020175]
[1736057437907,0.27535,3632.6,3632.5,1.00020175]
[1736057438411,0.27535,3632.6,3632.3,1.43490175]
[1736057440804,3.2078,3632.5,3632.3,1.43490175]
[1736057444022,0.27535,3632.6,3632.3,1.43490175]
[1736057444217,3.2078,3632.5,3632.3,1.43490175]
[1736057447123,3.6322,3632.5,3632.3,1.43490175]
[1736057447609,0.4244,3632.5,3632.3,1.43490175]
[1736057447815,3.6322,3632.5,3632.3,1.43490175]
[1736057448322,3.90756,3632.5,3632.3,1.43490175]
[1736057448920,0.69976,3632.5,3632.3,1.43490175]
[1736057449118,3.90756,3632.5,3632.3,1.43490175]
[1736057449417,3.6322,3632.5,3632.3,1.43490175]
[1736057451023,0.4244,3632.5,3632.3,1.43490175]
[1736057451415,3.6322,3632.5,3632.3,1.43490175]
[1736057453724,3.2078,3632.5,3632.3,1.43490175]
[1736057456323,0.27534,3632.7,3632.3,1.43490175]
[1736057456521,3.2078,3632.5,3632.3,1.43490175]
[1736057458026,2.43568328,3632.7,3632.3,1.43490175]
[1736057458227,3.2078,3632.5,3632.3,1.43490175]
[1736057459122,3.2078,3632.5,3632.4,0.27536]
[1736057460430,3.2078,3632.5,3632.3,6.04341123]
[1736057460725,3.2078,3632.5,3632.4,0.27536]
[1736057462925,6.23234328,3632.8,3632.4,4.60849948]
[1736057463223,6.23234328,3632.8,3632.5,1.00020175]
[1736057464126,2.16034328,3632.7,3632.5,1.00020175]
[1736057466033,2.16034328,3632.7,3632.5,1.27555175]
[1736057466834,2.16034328,3632.6,3632.5,1.27555175]
[1736057469333,2.16034328,3632.6,3632.5,1.71065175]
[1736057469529,2.16034328,3632.6,3632.5,6.04379123]
[1736057469834,2.16034328,3632.6,3632.5,5.76844123]
[1736057471029,2.16034328,3632.7,3632.5,11.79000214]
[1736057472237,3.65364739,3632.7,3632.6,4.33302872]
[1736057472530,3.92898739,3632.7,3632.6,4.33302872]
[1736057473634,0.27535,3632.6,3632.5,4.33302872]
[1736057473836,0.68795,3632.6,3632.5,4.33302872]
[1736057475033,1.10108247,3632.6,3632.5,4.33302872]
[1736057475634,2.10128422,3632.6,3632.5,4.33302872]
[1736057476938,2.10128422,3632.6,3632.3,4.33302872]
[1736057476939,0.27536,3632.4,3632.3,4.33302872]
[1736057477138,1.27556175,3632.4,3632.3,4.33302872]
[1736057478535,1.27556175,3632.4,3632.1,6.48671397]
[1736057478536,5.73015094,3632.4,3632.1,4.33302872]
[1736057478737,0.72288,3632.3,3632.1,4.33302872]
[1736057479139,0.27538,3632.2,3632.1,4.33302872]
[1736057479742,3.92519422,3632.2,3632.0,4.33302872]
[1736057479941,0.8522,3632.1,3632.0,4.33302872]
[1736057480336,1.12759,3632.1,3632.0,4.33302872]
[1736057483141,0.8522,3632.1,3632.0,4.33302872]
[1736057483437,0.8522,3632.1,3631.9,5.33323047]
[1736057484639,3.00871643,3632.1,3632.0,4.33302872]
[1736057486434,3.00871643,3632.1,3631.9,5.33323047]
[1736057488441,3.28410643,3632.1,3631.9,5.33323047]
[1736057491445,3.00871643,3632.1,3631.9,5.33323047]
[1736057498447,0.8522,3632.1,3631.9,5.33323047]
[1736057499444,2.15651643,3632.2,3631.9,5.33323047]
[1736057499653,2.15651643,3632.2,3632.1,2.2757935]
[1736057499843,0.12771643,3632.2,3632.1,2.2757935]
[1736057500145,3.08758175,3632.4,3632.3,0.27537]
[1736057500348,2.94048175,3632.4,3632.3,4.48337175]
[1736057501241,0.4206,3633.0,3632.3,4.48337175]
[1736057501242,0.4206,3633.0,3632.3,4.20800175]
[1736057501445,0.4206,3633.0,3632.9,1.00020175]
[1736057502253,0.4206,3633.0,3632.9,5.32676835]
[1736057502749,0.4206,3633.0,3632.9,5.60209835]
[1736057503442,0.4206,3633.0,3632.9,5.32676835]
[1736057504244,0.4206,3633.0,3632.9,5.60209835]
[1736057504646,0.4206,3633.0,3632.9,5.32676835]
[1736057505149,0.4206,3633.0,3632.9,1.00020175]
[1736057505851,0.4206,3633.0,3632.8,4.3265666]
[1736057506353,0.4206,3633.0,3632.8,4.6018966]
[1736057506546,0.4206,3633.0,3632.8,0.27533]
[1736057507542,0.4206,3633.0,3632.7,5.60210835]
[1736057507848,0.4206,3633.0,3632.7,1.27554175]
[1736057509153,0.4206,3633.0,3632.6,5.32676835]
[1736057509356,0.4206,3633.0,3632.8,1.00020175]
[1736057509957,0.4206,3633.0,3632.9,0.27533]
[1736057512161,0.8577,3633.3,3632.8,5.32676835]
[1736057512362,0.8577,3633.3,3633.2,1.00020175]
[1736057512551,0.8577,3633.3,3633.2,1.27550175]
[1736057513065,3.45276387,3633.8,3633.2,1.00020175]
[1736057513258,3.87736387,3633.8,3633.7,1.00020175]
[1736057514557,3.87736387,3633.8,3633.7,1.27547175]
[1736057515259,3.6324,3633.8,3633.7,1.27547175]
[1736057517670,0.4246,3633.8,3633.7,1.27547175]
[1736057518056,0.8657,3634.0,3633.9,0.27525]
[1736057518256,0.8657,3634.0,3633.9,1.27545175]
[1736057518561,0.8657,3634.0,3633.9,1.00020175]
[1736057519554,0.8657,3634.0,3633.9,1.27545175]
[1736057519757,0.8657,3634.0,3633.9,1.00020175]
[1736057523065,0.8657,3634.0,3633.9,1.27545175]
[1736057525176,0.8657,3634.0,3633.4,3.2078]
[1736057525465,0.8657,3634.0,3633.6,0.27527]
[1736057525466,1.86590175,3634.0,3633.6,0.27527]
[1736057525659,5.07370175,3634.0,3633.6,0.27527]
[1736057526658,5.07370175,3634.0,3633.5,1.00020175]
[1736057526857,5.07370175,3634.0,3633.5,1.27548175]
[1736057529488,5.07370175,3634.0,3633.5,1.27547175]
[1736057529763,1.27546175,3633.8,3633.3,1.00020175]
[1736057530713,1.00020175,3633.8,3633.3,1.00020175]
[1736057530865,1.27546175,3633.8,3633.3,1.00020175]
[1736057531070,1.00020175,3633.8,3633.3,1.27549175]